bitfinex/quotes_SOLUSD_20240606
["timestamp","ask_amount","ask_price","bid_price","bid_amount"]
[1717661213644,2.1438,172.59,172.53,7.9945]
[1717661214245,2.1438,172.59,172.53,5.85]
[1717661214776,2.1439,172.58,172.53,12.4684]
[1717661214942,2.1439,172.58,172.53,6.6184]
[1717661215651,2.1439,172.58,172.53,12.4054]
[1717661216044,2.1439,172.58,172.53,6.6184]
[1717661216571,7.9939,172.58,172.53,6.6184]
[1717661216870,2.144,172.57,172.53,12.4054]
[1717661217167,2.144,172.57,172.53,6.6184]
[1717661217765,7.994,172.57,172.53,6.6184]
[1717661219077,5.85,172.55,172.51,11.82019612]
[1717661219250,5.85,172.55,172.51,17.91629612]
[1717661219667,5.85,172.55,172.51,11.8831]
[1717661220741,5.85,172.55,172.51,14.0278]
[1717661222365,5.85,172.53,172.51,11.8831]
[1717661222555,5.85,172.52,172.51,5.787]
[1717661222754,5.85,172.52,172.49,21.08799612]
[1717661223157,5.85,172.52,172.5,5.787]
[1717661225266,5.85,172.54,172.5,5.787]
[1717661230163,2.1442,172.56,172.51,6.0691]
[1717661230377,2.1442,172.56,172.51,14.0638]
[1717661230553,22.1442,172.56,172.51,19.8508]
[1717661230965,22.1442,172.56,172.51,17.7061]
[1717661231878,22.1442,172.56,172.51,11.8561]
[1717661232371,2.1443,172.55,172.51,11.8561]
[1717661235462,2.1443,172.55,172.51,6.0691]
[1717661235769,2.1443,172.55,172.51,11.8561]
[1717661236471,2.1444,172.54,172.51,11.8561]
[1717661236661,2.1444,172.54,172.5,6.03319612]
[1717661236860,2.1444,172.54,172.51,5.787]
[1717661237476,2.1444,172.54,172.5,6.03319612]
[1717661237677,2.1444,172.54,172.51,5.787]
[1717661237857,2.1444,172.54,172.5,5.787]
[1717661239356,2.1444,172.54,172.5,11.82019612]
[1717661239585,7.9946,172.53,172.49,6.03319612]
[1717661239876,2.1446,172.52,172.49,6.03319612]
[1717661240253,2.1446,172.52,172.5,5.787]
[1717661240555,5.85,172.53,172.48,6.03319612]
[1717661240556,7.9946,172.53,172.48,6.03319612]
[1717661241272,7.9946,172.53,172.49,6.03319612]
[1717661242154,7.9946,172.53,172.48,6.03319612]
[1717661242796,5.85,172.52,172.48,6.03319612]
[1717661243079,7.9947,172.52,172.47,6.03319612]
[1717661244181,7.9947,172.52,172.48,6.03319612]
[1717661244998,7.9947,172.52,172.47,6.03319612]
[1717661245457,2.1447,172.52,172.47,14.02839612]
[1717661246083,2.1446,172.53,172.47,14.02839612]
[1717661246671,2.1446,172.53,172.49,5.85]
[1717661248288,2.1446,172.53,172.49,11.88319612]
[1717661248675,2.1446,172.52,172.49,11.88319612]
[1717661249286,2.1446,172.52,172.49,6.03319612]
[1717661250200,2.1446,172.52,172.48,11.88319612]
[1717661250571,2.1446,172.52,172.48,5.85]
[1717661251500,2.1448,172.51,172.47,6.03319612]
[1717661251676,2.1448,172.51,172.46,17.67019612]
[1717661251878,2.1448,172.51,172.47,5.85]
[1717661252085,2.1448,172.51,172.47,11.88319612]
[1717661252970,2.1448,172.51,172.48,5.85]
[1717661253295,2.1447,172.52,172.48,5.85]
[1717661253676,2.1448,172.51,172.48,5.85]
[1717661255696,2.1447,172.52,172.48,5.85]
[1717661256004,2.1448,172.51,172.48,5.85]
[1717661258717,2.1448,172.51,172.47,6.03319612]
[1717661258992,2.1448,172.51,172.47,11.88319612]
[1717661259185,2.1448,172.51,172.47,5.85]
[1717661260598,2.1448,172.51,172.47,11.88319612]
[1717661261697,2.1448,172.51,172.49,5.85]
[1717661263990,2.1448,172.51,172.46,13.97349612]
[1717661264798,2.1448,172.51,172.47,5.85]
[1717661264994,2.1448,172.51,172.48,5.85]
[1717661265694,2.1448,172.51,172.46,13.97359612]
[1717661265902,2.1449,172.5,172.46,11.82819612]
[1717661266101,2.1449,172.5,172.47,5.85]
[1717661266691,2.1448,172.51,172.47,5.85]
[1717661267072,2.1448,172.51,172.46,11.82819612]
[1717661267382,2.1448,172.51,172.47,5.85]
[1717661268199,2.1448,172.51,172.48,5.85]
[1717661268907,2.1448,172.51,172.49,5.85]
[1717661269401,17.55,172.62,172.48,5.85]
[1717661269603,2.1432,172.64,172.58,2.1438]
[1717661269809,5.85,172.65,172.59,5.85]
[1717661269978,2.1438,172.59,172.53,6.03319612]
[1717661270180,20.01914334,172.66,172.54,11.88319612]
[1717661270395,2.1436,172.6,172.56,5.85]
[1717661270585,2.1436,172.6,172.57,5.85]
[1717661271200,28.59114334,172.66,172.57,2.144]
[1717661271201,5.85,172.65,172.57,2.144]
[1717661271502,2.1434,172.62,172.58,5.85]
[1717661272401,2.1434,172.62,172.59,5.85]
[1717661272974,2.1434,172.62,172.6,5.85]
[1717661274688,2.1432,172.64,172.58,2.1438]
[1717661275015,6.4066,172.67,172.57,120.0]
[1717661275016,6.429,172.66,172.57,120.0]
[1717661275304,2.1433,172.63,172.58,2.1439]
[1717661275794,2.1433,172.63,172.6,5.85]
[1717661278002,2.1433,172.63,172.59,2.1438]
[1717661278306,1.7938,172.63,172.6,5.85]
[1717661279188,2.1432,172.64,172.6,5.85]
[1717661279489,2.1433,172.63,172.6,5.85]
[1717661279700,2.1433,172.63,172.58,2.1438]
[1717661279886,2.1433,172.63,172.59,5.85]
[1717661280092,2.1433,172.63,172.58,2.1438]
[1717661280522,2.1433,172.63,172.59,7.9937]
[1717661280820,12.2454,172.63,172.55,2.1442]
[1717661281114,2.1436,172.61,172.57,5.85]
[1717661281285,2.1439,172.58,172.52,10.32239612]
[1717661281490,2.1439,172.58,172.53,5.85]
[1717661281703,2.1439,172.58,172.53,2.1444]
[1717661281913,2.1439,172.58,172.54,2.1444]
[1717661282292,2.1439,172.58,172.53,2.1444]
[1717661283519,2.1439,172.58,172.54,2.1444]
[1717661286616,7.9938,172.59,172.54,2.1444]
[1717661287017,2.1439,172.58,172.54,2.1444]
[1717661288225,2.1437,172.6,172.55,5.85]
[1717661288434,2.1437,172.6,172.56,7.9941]
[1717661288926,2.1437,172.6,172.56,5.85]
[1717661289807,30.137,172.62,172.56,5.85]
[1717661289808,2.1438,172.59,172.56,5.85]
[1717661290238,2.1438,172.59,172.54,2.1443]
[1717661290443,2.1438,172.59,172.55,5.85]
[1717661290727,2.1438,172.59,172.55,7.9942]
[1717661291413,2.1438,172.59,172.54,7.9943]
[1717661292027,2.1438,172.59,172.54,2.1443]
[1717661292209,2.1438,172.59,172.54,7.9943]
[1717661293006,2.1439,172.58,172.54,2.1443]
[1717661293203,2.1439,172.58,172.54,7.9943]
[1717661293423,2.1438,172.59,172.54,7.9943]
[1717661293722,2.1439,172.58,172.54,2.1443]
[1717661293935,2.144,172.57,172.53,2.1444]
[1717661294227,2.1441,172.57,172.52,2.1446]
[1717661294402,2.1441,172.57,172.53,5.85]
[1717661294604,2.1441,172.57,172.53,7.9944]
[1717661296138,2.144,172.58,172.53,7.9944]
[1717661296420,5.85,172.58,172.52,2.1446]
[1717661296627,2.1441,172.56,172.52,2.1446]
[1717661296829,2.1441,172.57,172.52,2.1446]
[1717661297712,2.1441,172.57,172.53,7.9945]
[1717661300512,2.1441,172.57,172.52,7.9946]
[1717661300714,2.1441,172.56,172.52,2.1446]
[1717661301023,2.1441,172.56,172.52,7.9946]
[1717661302023,2.1441,172.56,172.52,2.1446]
[1717661302416,2.1441,172.56,172.52,7.9946]
[1717661302815,2.1441,172.57,172.52,7.9946]
[1717661303021,8.7246,172.57,172.52,2.1446]
[1717661303214,8.7246,172.57,172.52,7.9946]
[1717661304429,2.1442,172.56,172.51,2.1447]
[1717661304621,2.1442,172.56,172.51,7.9947]
[1717661304815,2.1442,172.56,172.51,2.1447]
[1717661305523,16.5703,172.57,172.5,2.1448]
[1717661305730,2.1444,172.54,172.5,2.1448]
[1717661306737,2.1445,172.53,172.49,7.9949]
[1717661307518,2.1445,172.53,172.49,2.1449]
[1717661308217,2.1445,172.54,172.49,2.1449]
[1717661308424,8.3411,172.54,172.49,2.1449]
[1717661308840,6.5622,172.54,172.45,4.2908]
[1717661309134,8.7069,172.52,172.48,2.1451]
[1717661309935,6.5622,172.52,172.48,2.1451]
[1717661310338,6.5622,172.52,172.44,19.3105]
[1717661310641,8.7069,172.52,172.47,2.1452]
[1717661310937,8.7069,172.52,172.48,2.1451]
[1717661311124,7.9946,172.53,172.48,2.1451]
[1717661311325,2.1446,172.53,172.48,5.85]
[1717661311528,2.3142,172.56,172.48,6.4354]
[1717661311725,10.7197,172.58,172.52,5.85]
[1717661311916,2.1442,172.56,172.52,5.85]
[1717661312123,6.4165,172.59,172.55,5.85]
[1717661312440,2.1433,172.63,172.58,7.9939]
[1717661312815,2.1433,172.63,172.58,2.1439]
[1717661313022,2.1434,172.62,172.59,5.85]
[1717661314340,2.1435,172.61,172.59,5.85]
[1717661314849,2.1436,172.6,172.55,2.1442]
[1717661315241,2.1438,172.59,172.57,5.85]
[1717661315430,2.1437,172.6,172.56,5.85]
[1717661317526,6.4481,172.58,172.51,6.03319612]
[1717661317743,8.592,172.58,172.54,5.85]
[1717661318429,61.568,172.61,172.55,5.85]
[1717661318430,2.1438,172.59,172.55,5.85]
[1717661318641,2.1438,172.59,172.56,5.85]
[1717661318835,22.1437,172.6,172.57,5.85]
[1717661319535,2.1438,172.59,172.57,5.85]
[1717661319737,22.1437,172.6,172.57,5.85]
[1717661320339,2.1437,172.6,172.57,5.85]
[1717661320547,2.1437,172.6,172.58,5.85]
[1717661320750,2.1436,172.61,172.59,5.85]
[1717661325158,2.1436,172.61,172.58,5.85]
[1717661325859,2.1437,172.6,172.55,2.1442]
[1717661326046,2.1437,172.6,172.58,5.85]
[1717661326638,10.7172,172.62,172.57,5.85]
[1717661327247,2.1437,172.6,172.57,5.85]
[1717661331869,2.1437,172.6,172.56,2.1441]
[1717661332063,2.1437,172.6,172.57,5.85]
[1717661333249,2.1437,172.6,172.56,3.01632771]
[1717661333457,2.1438,172.59,172.56,8.86632771]
[1717661333648,2.1438,172.59,172.56,5.85]
[1717661333849,2.1438,172.59,172.57,5.85]
[1717661334369,2.1437,172.6,172.57,5.85]
[1717661336473,2.1437,172.6,172.55,5.16052771]
[1717661336650,2.1437,172.6,172.57,5.85]
[1717661338266,2.1437,172.6,172.55,5.16052771]
[1717661338446,2.1437,172.6,172.57,5.85]
[1717661342147,2.1438,172.59,172.57,5.85]
[1717661343071,2.1437,172.6,172.57,5.85]
[1717661343455,2.1437,172.6,172.55,5.16052771]
[1717661343669,2.1437,172.6,172.57,5.85]
[1717661346755,2.1438,172.59,172.57,5.85]
[1717661349207,2.1437,172.6,172.57,5.85]
[1717661351001,2.1438,172.59,172.57,5.85]
[1717661352705,2.1437,172.6,172.57,5.85]
[1717661354001,24.2871,172.61,172.55,5.16052771]
[1717661354002,2.1438,172.59,172.55,5.16052771]
[1717661354192,24.2871,172.61,172.57,5.85]
[1717661354392,2.1437,172.6,172.57,5.85]
[1717661354593,2.1438,172.59,172.57,5.85]
[1717661355617,2.1438,172.59,172.55,5.16052771]
[1717661355786,2.1438,172.59,172.57,5.85]
[1717661356916,2.1439,172.58,172.55,5.85]
[1717661357607,2.1439,172.58,172.54,8.86632771]
[1717661359295,2.1439,172.58,172.55,5.85]
[1717661360201,2.1439,172.58,172.55,8.86632771]
[1717661360400,2.1438,172.59,172.55,8.86632771]
[1717661360606,2.1438,172.59,172.55,5.85]
[1717661360795,2.1437,172.6,172.58,5.85]
[1717661360991,2.1433,172.63,172.59,5.85]
[1717661361312,2.1431,172.65,172.62,5.85]
[1717661361618,2.1429,172.66,172.61,2.1435]
[1717661361788,2.1429,172.66,172.64,5.85]
[1717661362115,2.143,172.65,172.64,5.85]
[1717661362308,2.143,172.65,172.63,5.85]
[1717661362902,2.1431,172.64,172.61,3.01632771]
[1717661363100,2.1431,172.64,172.61,5.85]
[1717661363499,40.8505,172.66,172.61,3.01632771]
[1717661363815,2.1434,172.62,172.59,8.86632771]
[1717661364117,2.1434,172.62,172.59,3.01632771]
[1717661364319,2.1434,172.62,172.6,3.01632771]
[1717661364809,2.1434,172.62,172.59,8.86632771]
[1717661365616,2.1434,172.62,172.59,3.01632771]
[1717661365803,2.1434,172.62,172.59,8.86632771]
[1717661367218,2.1433,172.63,172.59,8.86632771]
[1717661367821,2.1434,172.62,172.59,8.86632771]
[1717661368198,2.1436,172.61,172.59,3.01632771]
[1717661368514,19.2886,172.64,172.59,3.01632771]
[1717661368515,2.1436,172.6,172.59,3.01632771]
[1717661368723,2.1436,172.6,172.58,3.01632771]
[1717661368921,2.1437,172.6,172.58,3.01632771]
[1717661369301,2.1437,172.6,172.57,3.01632771]
[1717661371015,2.1438,172.59,172.57,3.01632771]
[1717661372427,2.1439,172.58,172.57,3.01632771]
[1717661372637,2.1439,172.58,172.56,3.01632771]
[1717661375430,2.144,172.57,172.56,3.01632771]
[1717661376622,2.144,172.57,172.5,2.1448]
[1717661376623,2.1442,172.56,172.54,3.01632771]
[1717661376800,2.1443,172.55,172.54,3.01632771]
[1717661377000,2.1443,172.55,172.53,3.01632771]
[1717661378234,2.1443,172.55,172.52,3.01632771]
[1717661378805,2.1444,172.54,172.52,3.01632771]
[1717661381631,2.1444,172.54,172.51,8.86632771]
[1717661382013,2.1444,172.54,172.52,3.01632771]
[1717661383239,2.1444,172.54,172.51,8.86632771]
[1717661383710,2.1444,172.54,172.51,3.01632771]
[1717661383915,2.1444,172.54,172.51,8.86632771]
[1717661385221,2.1444,172.54,172.51,5.85]
[1717661385620,2.1444,172.54,172.51,8.86632771]
[1717661388930,2.1444,172.54,172.51,3.01632771]
[1717661389527,2.1444,172.54,172.5,8.86632771]
[1717661389831,2.1444,172.54,172.5,3.01632771]
[1717661390038,2.1444,172.54,172.5,8.86632771]
[1717661392546,2.1445,172.53,172.5,8.86632771]
[1717661393437,2.1445,172.54,172.5,8.86632771]
[1717661393840,4.6291,172.53,172.5,3.01632771]
[1717661394033,4.6291,172.53,172.48,8.86632771]
[1717661394034,2.1447,172.52,172.48,8.86632771]
[1717661398854,2.4846,172.53,172.48,8.86632771]
[1717661399434,12.8709,172.48,172.47,3.01632771]
[1717661399650,4.2899,172.5,172.43,8.86632771]
[1717661399961,2.4851,172.49,172.43,8.86632771]
[1717661400263,16.5741,172.51,172.44,5.85]
[1717661400433,5.85,172.52,172.46,5.85]
[1717661400641,2.4848,172.51,172.46,5.85]
[1717661400846,2.4848,172.51,172.47,8.13587033]
[1717661401051,24.2889,172.54,172.47,8.13587033]
[1717661401052,2.1447,172.52,172.47,8.13587032]
[1717661401248,2.1447,172.52,172.48,5.85]
[1717661401763,2.3146,172.53,172.47,3.01632771]
[1717661401961,2.1445,172.54,172.48,2.31881189]
[1717661402143,2.1443,172.55,172.51,5.85]
[1717661402343,17.51435698,172.59,172.52,2.31802818]
[1717661402547,2.1439,172.58,172.53,5.85]
[1717661402837,2.1439,172.58,172.49,24.29]
[1717661402838,21.5032,172.61,172.55,5.85]
[1717661403042,21.5032,172.61,172.56,5.85]
[1717661403043,2.1439,172.58,172.56,5.85]
[1717661404072,2.1439,172.58,172.51,3.01632771]
[1717661404073,6.4982,172.56,172.51,3.01632771]
[1717661404234,2.1448,172.51,172.5,3.01632771]
[1717661404646,2.1449,172.5,172.47,8.86632771]
[1717661404853,2.1449,172.5,172.47,3.01632771]
[1717661405159,2.1449,172.5,172.46,5.85]
[1717661405160,2.1449,172.5,172.46,8.86632771]
[1717661405344,30.1392,172.53,172.47,5.85]
[1717661405345,2.1448,172.51,172.47,5.85]
[1717661406742,2.1448,172.51,172.48,5.85]
[1717661407351,2.1449,172.5,172.48,5.85]
[1717661407565,2.1449,172.5,172.47,5.85]
[1717661407941,2.1448,172.51,172.47,5.85]
[1717661408650,2.1447,172.52,172.47,5.85]
[1717661410445,2.1448,172.51,172.47,5.85]
[1717661411269,2.1448,172.51,172.45,3.01632771]
[1717661411568,2.1448,172.51,172.47,5.85]
[1717661412448,2.1448,172.51,172.48,5.85]
[1717661414143,2.1449,172.5,172.45,3.01632771]
[1717661414350,4.2896,172.51,172.46,3.01632771]
[1717661414563,0.17,172.5,172.46,5.85]
[1717661414769,2.1448,172.51,172.44,5.16192771]
[1717661414947,15.0753,172.56,172.49,5.85]
[1717661415147,8.5769,172.56,172.47,6.1654]
[1717661415459,2.1443,172.55,172.53,5.85]
[1717661415870,2.1442,172.56,172.53,5.85]
[1717661416059,2.1441,172.57,172.53,5.85]
[1717661416261,2.1441,172.57,172.54,5.85]
[1717661416474,2.1441,172.56,172.54,5.85]
[1717661416656,2.144,172.57,172.54,5.85]
[1717661417477,2.144,172.57,172.51,3.01632771]
[1717661417756,2.144,172.57,172.54,5.85]
[1717661417958,2.1442,172.56,172.51,3.01632771]
[1717661418172,2.1442,172.56,172.54,5.85]
[1717661418374,2.1442,172.56,172.53,5.85]
[1717661419492,2.1442,172.56,172.54,5.85]
[1717661420569,2.1442,172.56,172.52,3.01632771]
[1717661420770,2.1442,172.56,172.54,5.85]
[1717661421275,0.17,172.55,172.53,5.85]
[1717661421482,2.1442,172.56,172.53,5.85]
[1717661421663,2.4841,172.57,172.54,5.85]
[1717661422186,2.3141,172.57,172.55,5.85]
[1717661422363,2.1439,172.58,172.56,5.85]
[1717661422562,27.60711117,172.64,172.57,5.85]
[1717661422568,2.1438,172.59,172.57,5.85]
[1717661423592,2.1439,172.58,172.57,5.85]
[1717661424585,2.144,172.57,172.53,3.01632771]
[1717661424890,2.144,172.57,172.56,5.85]
[1717661425066,2.144,172.58,172.56,5.85]
[1717661425558,2.144,172.57,172.55,5.85]
[1717661426168,2.144,172.57,172.53,3.01632771]
[1717661426378,2.144,172.57,172.55,5.85]
[1717661431205,2.144,172.58,172.55,5.85]
[1717661432093,0.34,172.59,172.53,3.01632771]
[1717661432273,2.1443,172.55,172.53,3.01632771]
[1717661432480,2.1443,172.55,172.53,8.86632771]
[1717661432685,2.1443,172.55,172.53,3.01632771]
[1717661432981,2.1444,172.54,172.52,3.01632771]
[1717661433286,4.2884,172.56,172.48,2.1451]
[1717661433287,0.17,172.55,172.51,3.01632771]
[1717661433491,2.1446,172.52,172.51,3.01632771]
[1717661433791,2.1446,172.53,172.5,5.85]
[1717661434087,2.1446,172.53,172.5,3.01632771]
[1717661434316,2.4846,172.52,172.5,3.01632771]
[1717661434585,2.1451,172.48,172.47,3.01632771]
[1717661434768,2.3151,172.48,172.47,3.01632771]
[1717661434969,2.3151,172.48,172.46,8.86632771]
[1717661435182,2.3151,172.48,172.46,3.01632771]
[1717661435392,0.17,172.48,172.46,3.01632771]
[1717661435593,2.3152,172.48,172.45,3.01632771]
[1717661435776,2.1453,172.47,172.45,8.86632771]
[1717661435974,2.3152,172.48,172.45,8.86632771]
[1717661436285,2.3152,172.48,172.45,5.85]
[1717661436672,2.1453,172.47,172.45,5.85]
[1717661439272,2.1453,172.47,172.44,3.01632771]
[1717661439491,2.1453,172.47,172.45,5.85]
[1717661443682,2.1453,172.47,172.43,3.01632771]
[1717661443997,2.1453,172.47,172.42,3.01632771]
[1717661444211,0.17,172.48,172.45,5.85]
[1717661444212,2.1454,172.46,172.45,5.85]
[1717661444382,2.1454,172.46,172.42,3.01632771]
[1717661444577,0.34,172.45,172.43,5.85]
[1717661444785,2.4856,172.45,172.43,5.85]
[1717661446482,2.4856,172.45,172.42,3.01632771]
[1717661446683,2.4856,172.45,172.43,5.85]
[1717661447597,2.4856,172.45,172.41,3.01632771]
[1717661447822,2.4856,172.45,172.43,5.85]
[1717661447988,2.4856,172.45,172.41,3.01632771]
[1717661448188,2.4856,172.45,172.43,5.85]
[1717661448702,0.34,172.45,172.43,5.85]
[1717661451103,4.2902,172.49,172.44,5.85]
[1717661451306,2.1449,172.5,172.48,5.85]
[1717661451612,19.3021,172.52,172.48,5.85]
[1717661451808,2.1449,172.5,172.48,5.85]
[1717661452007,2.145,172.49,172.48,5.85]
[1717661452204,2.1451,172.48,172.41,7.30832771]
[1717661452403,2.1451,172.48,172.46,5.85]
[1717661452919,2.1451,172.49,172.46,5.85]
[1717661456697,2.1451,172.49,172.43,5.16202771]
[1717661456897,2.1451,172.49,172.46,5.85]
[1717661459217,2.1451,172.48,172.43,3.01632771]
[1717661459515,2.145,172.49,172.46,5.85]
[1717661460017,0.34,172.5,172.46,5.85]
[1717661460195,0.17,172.49,172.47,5.85]
[1717661460396,0.17,172.49,172.42,6.4375]
[1717661460397,15.50048865,172.54,172.48,5.85]
[1717661460610,4.2889,172.54,172.5,5.85]
[1717661460817,2.1447,172.52,172.51,5.85]
[1717661461119,2.1444,172.55,172.49,2.145]
[1717661461317,2.1444,172.55,172.47,7.30682771]
[1717661461318,2.1443,172.55,172.53,5.85]
[1717661461628,2.1443,172.55,172.54,5.85]
[1717661461827,2.1439,172.58,172.54,5.85]
[1717661462033,2.1437,172.6,172.56,5.85]
[1717661462223,4.287,172.62,172.57,5.85]
[1717661462527,2.1438,172.59,172.58,5.85]
[1717661463108,2.1437,172.6,172.58,5.85]
[1717661463321,2.1437,172.6,172.57,5.85]
[1717661464602,0.34,172.59,172.57,5.85]
[1717661472233,0.17,172.59,172.58,5.85]
[1717661474029,2.1439,172.58,172.52,2.1446]
[1717661474238,2.1439,172.58,172.55,5.85]
[1717661475345,2.3138,172.59,172.55,5.85]
[1717661475549,2.3137,172.6,172.58,5.85]
[1717661475719,2.1438,172.59,172.53,25.5445]
[1717661476122,2.1438,172.59,172.53,2.1445]
[1717661476341,2.1438,172.59,172.57,5.85]
[1717661476648,2.1438,172.59,172.56,5.85]
[1717661477359,2.1439,172.58,172.53,2.1445]
[1717661477647,2.1439,172.58,172.56,5.85]
[1717661477855,2.1438,172.59,172.56,5.85]
[1717661478028,0.17,172.6,172.58,5.85]
[1717661478229,0.17,172.6,172.59,5.85]
[1717661479245,2.3136,172.61,172.59,5.85]
[1717661479452,2.3136,172.61,172.6,5.85]
[1717661479659,2.4836,172.61,172.6,5.85]
[1717661479824,2.3136,172.61,172.6,5.85]
[1717661480025,2.1436,172.61,172.6,5.85]
[1717661480440,2.1436,172.61,172.55,2.1442]
[1717661480631,2.1436,172.61,172.59,5.85]
[1717661481546,2.1436,172.61,172.55,2.1442]
[1717661481846,2.1436,172.6,172.59,5.85]
[1717661482227,2.1438,172.59,172.54,2.1444]
[1717661482426,2.1438,172.59,172.56,5.85]
[1717661483949,2.1438,172.59,172.57,5.85]
[1717661484132,2.4837,172.6,172.57,5.85]
[1717661484457,2.4837,172.6,172.55,2.1442]
[1717661484756,2.4837,172.6,172.54,2.1443]
[1717661485963,2.1438,172.59,172.54,2.1443]
[1717661488357,2.1438,172.59,172.57,5.85]
[1717661488727,2.1438,172.59,172.54,2.1443]
[1717661488930,2.1438,172.59,172.57,5.85]
[1717661490055,2.1438,172.59,172.54,2.1443]
[1717661490245,2.1438,172.59,172.57,5.85]
[1717661490553,2.4837,172.6,172.57,5.85]
[1717661490757,2.3137,172.6,172.58,5.85]
[1717661491336,2.3137,172.6,172.59,5.85]
[1717661495342,2.3137,172.6,172.55,2.1442]
[1717661495550,2.3137,172.6,172.59,5.85]
[1717661499558,2.3137,172.6,172.58,5.85]
[1717661500056,2.1438,172.59,172.54,2.1443]
[1717661500439,2.1438,172.59,172.58,5.85]
[1717661501333,2.1438,172.59,172.55,2.1442]
[1717661501557,2.1438,172.59,172.58,5.85]
[1717661502055,2.1438,172.59,172.55,2.1442]
[1717661502353,2.1438,172.59,172.58,5.85]
[1717661502557,2.3137,172.6,172.58,5.85]
[1717661504656,2.3137,172.6,172.55,2.1442]
[1717661504858,2.3137,172.6,172.58,5.85]
[1717661506760,2.3137,172.6,172.55,2.1442]
[1717661506962,2.3137,172.6,172.58,5.85]
[1717661507350,2.3137,172.6,172.59,5.85]
[1717661509059,2.3137,172.6,172.58,5.85]
[1717661511839,2.3137,172.6,172.57,3.01632771]
[1717661512148,2.3137,172.6,172.57,8.86632771]
[1717661512347,2.1438,172.59,172.57,3.01632771]
[1717661512656,2.1438,172.59,172.56,8.86632771]
[1717661514450,2.1438,172.59,172.57,3.01632771]
[1717661514762,2.1439,172.58,172.57,3.01632771]
[1717661515962,2.1438,172.59,172.57,3.01632771]
[1717661516362,2.1438,172.59,172.58,3.01632771]
[1717661516555,2.4838,172.59,172.58,3.01632771]
[1717661517862,15.3466,172.59,172.58,3.01632771]
[1717661518165,15.3466,172.59,172.55,3.02790445]
[1717661518166,2.1442,172.56,172.55,3.02790445]
[1717661518345,2.1443,172.55,172.54,3.02790445]
[1717661518545,2.4843,172.55,172.54,3.02790445]
[1717661518871,2.1446,172.53,172.52,6.03319612]
[1717661519061,0.34,172.53,172.52,6.03319612]
[1717661519248,0.34,172.53,172.51,6.03319612]
[1717661519448,0.34,172.53,172.52,3.028575]
[1717661519653,0.34,172.53,172.51,3.028575]
[1717661520046,0.34,172.53,172.52,3.028575]
[1717661520447,2.4845,172.53,172.52,3.028575]
[1717661520659,0.17,172.53,172.5,8.878575]
[1717661520863,2.1445,172.54,172.52,5.85]
[1717661521475,2.1445,172.54,172.51,3.028575]
[1717661521681,2.1445,172.54,172.52,5.85]
[1717661522559,2.1445,172.53,172.52,5.85]
[1717661524166,2.1445,172.53,172.5,3.028575]
[1717661524384,2.1445,172.53,172.51,5.85]
[1717661524874,2.1446,172.52,172.5,3.028575]
[1717661525056,4.2889,172.54,172.5,8.878575]
[1717661525262,2.1447,172.52,172.5,3.028575]
[1717661525565,2.3146,172.53,172.5,8.878575]
[1717661526285,2.1446,172.52,172.5,8.878575]
[1717661526580,2.1446,172.52,172.5,5.85]
[1717661527463,2.1446,172.52,172.49,3.028575]
[1717661527970,0.17,172.55,172.49,3.028575]